fUST/lending_fUST_20250427
["ID","MTS","AMOUNT","RATE_DAILY","PERIOD"]
[359133891,1745728255256,-759.3,0.00021643,2]
[359133892,1745728255265,-509.97,0.00021643,2]
[359133893,1745728255275,-447.36,0.00021643,2]
[359133894,1745728255285,-949.7,0.00021643,2]
[359133895,1745728255295,-456.67,0.00021643,2]
[359133896,1745728255304,-1046.68,0.00021643,2]
[359133897,1745728255313,-400.0,0.00021643,2]
[359133898,1745728255323,-716.53,0.00021643,2]
[359133899,1745728255332,-391.98946048,0.00021693,3]
[359133900,1745728255341,-224.469442,0.00021798,2]
[359133901,1745728255350,-180.957343,0.00021798,2]
[359133902,1745728255360,-180.957343,0.00021798,2]
[359133903,1745728255369,-151.0,0.00021798,2]
[359133904,1745728255379,-771.953858,0.00021798,2]
[359133905,1745728255388,-771.953858,0.00021798,2]
[359133906,1745728255398,-151.0,0.00021798,2]
[359133907,1745728255407,-403.0,0.00021798,2]
[359133908,1745728255416,-545.0,0.00021798,2]
[359133909,1745728255426,-706.0,0.00021798,2]
[359133910,1745728255435,-151.0,0.000219,3]
[359133911,1745728255445,-151.0,0.00021906,2]
[359133912,1745728255454,-728.6092309,0.00021906,2]
[359133913,1745728255463,-504.63,0.00021917,2]
[359133914,1745728255473,-465.24,0.00021917,2]
[359133915,1745728255483,-432.16,0.00021917,2]
[359133916,1745728255492,-400.0,0.00021917,2]
[359133917,1745728255502,-151.0,0.00021917,2]
[359133918,1745728255511,-429.27,0.00021917,2]
[359133919,1745728255520,-402.48,0.00021917,2]
[359133920,1745728255530,-478.17,0.00021917,2]
[359133921,1745728255539,-490.27,0.00021917,2]
[359133922,1745728255550,-431.58,0.00021917,2]
[359133923,1745728255560,-458.22,0.00021917,2]
[359133924,1745728255570,-400.0,0.00021917,2]
[359133925,1745728255579,-400.0,0.00021917,2]
[359133926,1745728255589,-562.556638,0.00021917,2]
[359133927,1745728255599,-562.556638,0.00021917,2]
[359133928,1745728255608,-855.66,0.00021917,2]
[359133929,1745728255618,-407.07,0.00021917,2]
[359133930,1745728255627,-759.3,0.00021917,2]
[359133931,1745728255636,-509.97,0.00021917,2]
[359133932,1745728255646,-447.36,0.00021917,2]
[359133933,1745728255656,-949.7,0.00021917,2]
[359133934,1745728255666,-456.67,0.00021917,2]
[359133935,1745728255676,-160.0,0.00021917,2]
[359133936,1745728255688,-1046.68,0.00021917,2]
[359133937,1745728255698,-400.0,0.00021917,2]
[359133938,1745728255707,-716.53,0.00021917,2]
[359133939,1745728255716,-151.0,0.00021918,2]
[359133940,1745728255726,-151.0,0.00021918,2]
[359133941,1745728255736,-151.0,0.00021918,2]
[359133942,1745728255745,-151.0,0.00021918,2]
[359133943,1745728255755,-151.0,0.00021918,2]
[359133944,1745728255765,-151.0,0.00021918,2]
[359133945,1745728255775,-151.0,0.00021918,2]
[359133946,1745728255784,-151.0,0.00021918,2]
[359133947,1745728255794,-151.0,0.00021918,2]
[359133948,1745728255804,-151.0,0.00021918,2]
[359133949,1745728255814,-151.0,0.00021918,2]
[359133950,1745728255823,-215.650982,0.00021918,2]
[359133951,1745728255833,-8826.19184721,0.00022,2]
[359133952,1745728255843,-2886.13,0.00022,2]
[359133953,1745728255852,-151.0,0.00022,7]
[359133954,1745728255862,-500.0,0.00022,2]
[359133955,1745728255871,-2000.0,0.00022,4]
[359133956,1745728255881,-150.0,0.000221,2]
[359133957,1745728255890,-504.63,0.00022191,2]
[359133958,1745728255900,-465.24,0.00022191,2]
[359133959,1745728255909,-432.16,0.00022191,2]
[359133960,1745728255920,-400.0,0.00022191,2]
[359133961,1745728255930,-429.27,0.00022191,2]
[359133962,1745728255939,-402.48,0.00022191,2]
[359133963,1745728255949,-478.17,0.00022191,2]
[359133964,1745728255959,-490.27,0.00022191,2]
[359133965,1745728255968,-431.58,0.00022191,2]
[359133966,1745728255977,-458.22,0.00022191,2]
[359133967,1745728255987,-400.0,0.00022191,2]
[359133968,1745728255996,-400.0,0.00022191,2]
[359133969,1745728256005,-151.0,0.00022191,7]
[359133970,1745728256016,-151.0,0.00022191,7]
[359133971,1745728256026,-464.30301,0.00022191,7]
[359133972,1745728256035,-151.0,0.00022191,2]
[359133973,1745728256044,-855.66,0.00022191,2]
[359133974,1745728256054,-305.660632,0.00022191,7]
[359133975,1745728256065,-407.07,0.00022191,2]
[359133976,1745728256075,-305.660622,0.00022191,7]
[359133977,1745728256084,-759.3,0.00022191,2]
[359133978,1745728256094,-509.97,0.00022191,2]
[359133979,1745728256103,-447.36,0.00022191,2]
[359133980,1745728256113,-949.7,0.00022191,2]
[359133981,1745728256123,-456.67,0.00022191,2]
[359133982,1745728256133,-1046.68,0.00022191,2]
[359133983,1745728256142,-464.69,0.00022191,2]
[359133984,1745728256152,-716.53,0.00022191,2]
[359133985,1745728256161,-542.5,0.00022208,15]
[359133986,1745728256171,-1000.0,0.00022252,2]
[359133987,1745728256180,-1000.0,0.00022252,2]
[359133988,1745728256190,-1000.0,0.00022252,2]
[359133989,1745728256200,-502.46153622,0.00022252,2]
[359133990,1745728256209,-1000.0,0.00022252,2]
[359133991,1745728256219,-1000.0,0.00022252,2]
[359133992,1745728256228,-1000.0,0.00022252,2]
[359133993,1745728256237,-600.0,0.0002226,2]
[359133994,1745728256246,-851.0,0.000224,2]
[359133995,1745728256256,-151.0,0.000224,5]
[359133996,1745728256265,-504.63,0.00022465,2]
[359133997,1745728256274,-465.24,0.00022465,2]
[359133998,1745728256283,-432.16,0.00022465,2]
[359133999,1745728256292,-201.4,0.00022465,2]
[359134000,1745728256301,-429.27,0.00022465,2]
[359134001,1745728256310,-402.48,0.00022465,2]
[359134002,1745728256319,-478.17,0.00022465,2]
[359134003,1745728256328,-490.27,0.00022465,2]
[359134004,1745728256337,-431.58,0.00022465,2]
[359134005,1745728256347,-458.22,0.00022465,2]
[359134006,1745728256357,-375.12,0.00022465,2]
[359134007,1745728256367,-258.65,0.00022465,2]
[359134008,1745728256377,-855.66,0.00022465,2]
[359134009,1745728256387,-407.07,0.00022465,2]
[359134010,1745728256396,-759.3,0.00022465,2]
[359134011,1745728256405,-509.97,0.00022465,2]
[359134012,1745728256415,-447.36,0.00022465,2]
[359134013,1745728256425,-949.7,0.00022465,2]
[359134014,1745728256435,-456.67,0.00022465,2]
[359134015,1745728256445,-1046.68,0.00022465,2]
[359134016,1745728256454,-716.53,0.00022465,2]
[359134017,1745728256465,-900.0,0.00022466,2]
[359134018,1745728256475,-391.98946048,0.00022521,4]
[359134019,1745728256486,-215.0738,0.0002256,2]
[359134020,1745728256496,-486.98886497,0.00022644,2]
[359134021,1745728256506,-250.0,0.00022648,2]
[359134022,1745728256517,-504.65,0.00022739,2]
[359134023,1745728256527,-465.25828065,0.00022739,2]
[359134024,1745728256537,-432.16,0.00022739,2]
[359134025,1745728256548,-429.49,0.00022739,2]
[359134026,1745728256560,-402.48288303,0.00022739,2]
[359134027,1745728256572,-478.28,0.00022739,2]
[359134028,1745728256582,-490.29,0.00022739,2]
[359134029,1745728256592,-151.0,0.00022739,7]
[359134030,1745728256603,-431.64,0.00022739,2]
[359134031,1745728256612,-458.3,0.00022739,2]
[359134032,1745728256623,-771.953858,0.00022739,2]
[359134033,1745728256634,-771.953863,0.00022739,2]
[359134034,1745728256645,-855.68,0.00022739,2]
[359134035,1745728256655,-407.19,0.00022739,2]
[359134036,1745728256665,-759.39,0.00022739,2]
[359134037,1745728256675,-509.97,0.00022739,2]
[359134038,1745728256687,-447.54,0.00022739,2]
[359134039,1745728256696,-949.72,0.00022739,2]
[359134040,1745728256706,-456.87611249,0.00022739,2]
[359134041,1745728256716,-1046.8139,0.00022739,2]
[359134042,1745728256727,-716.74,0.00022739,2]
[359134043,1745728256737,-2210.565,0.00022901,2]
[359134044,1745728256747,-152.0,0.00022935,3]
[359134045,1745728256756,-152.0,0.00022935,3]
[359134046,1745728256767,-170.0,0.00022935,3]
[359134047,1745728256777,-152.0,0.00022935,3]
[359134048,1745728256787,-170.0,0.00022935,3]
[359134049,1745728256797,-152.0,0.00022935,3]
[359134050,1745728256806,-170.0,0.00022935,3]
[359134051,1745728256816,-299.81383925,0.00022935,3]
[359134052,1745728256826,-152.0,0.00022935,3]
[359134053,1745728256836,-202.0,0.00022935,3]
[359134054,1745728256846,-267.7672263,0.00022935,3]
[359134055,1745728256855,-202.45035396,0.00022935,3]
[359134056,1745728256864,-319.0,0.00022935,3]
[359134057,1745728256874,-319.0,0.00022935,3]
[359134058,1745728256883,-319.0,0.00022935,3]
[359134059,1745728256893,-319.0,0.00022935,3]
[359134060,1745728256905,-319.0,0.00022935,3]
[359134061,1745728256915,-319.0,0.00022935,3]
[359134062,1745728256925,-319.0,0.00022935,3]
[359134063,1745728256934,-319.0,0.00022935,3]
[359134064,1745728256944,-319.0,0.00022935,3]
[359134065,1745728256955,-319.0,0.00022935,3]
[359134066,1745728256964,-319.0,0.00022935,3]
[359134067,1745728256974,-319.0,0.00022935,3]
[359134068,1745728256984,-319.0,0.00022935,3]
[359134069,1745728256994,-319.0,0.00022935,3]
[359134070,1745728257003,-319.0,0.00022935,3]
[359134071,1745728257013,-319.0,0.00022935,3]
[359134072,1745728257022,-319.0,0.00022935,3]
[359134073,1745728257032,-319.0,0.00022935,3]
[359134074,1745728257042,-319.0,0.00022935,3]
[359134075,1745728257052,-319.0,0.00022935,3]
[359134076,1745728257063,-319.0,0.00022935,3]
[359134077,1745728257072,-319.0,0.00022935,3]
[359134078,1745728257083,-319.0,0.00022935,3]
[359134079,1745728257093,-319.0,0.00022935,3]
[359134080,1745728257103,-319.0,0.00022935,3]
[359134081,1745728257112,-319.0,0.00022935,3]
[359134082,1745728257122,-319.0,0.00022935,3]
[359134083,1745728257134,-319.0,0.00022935,3]
[359134084,1745728257145,-319.0,0.00022935,3]
[359134085,1745728257155,-319.0,0.00022935,3]
[359134086,1745728257165,-319.0,0.00022935,3]
[359134087,1745728257177,-319.0,0.00022935,3]
[359134088,1745728257186,-319.0,0.00022935,3]
[359134089,1745728257195,-319.0,0.00022935,3]
[359134090,1745728257205,-319.0,0.00022935,3]
[359134091,1745728257215,-319.0,0.00022935,3]
[359134092,1745728257226,-319.0,0.00022935,3]
[359134093,1745728257237,-319.0,0.00022935,3]
[359134094,1745728257247,-319.0,0.00022935,3]
[359134095,1745728257258,-319.0,0.00022935,3]
[359134096,1745728257268,-319.0,0.00022935,3]
[359134097,1745728257278,-319.0,0.00022935,3]
[359134098,1745728257287,-319.0,0.00022935,3]
[359134099,1745728257296,-319.0,0.00022935,3]
[359134100,1745728257306,-319.0,0.00022935,3]
[359134101,1745728257315,-319.0,0.00022935,3]
[359134102,1745728257324,-319.0,0.00022935,3]
[359134103,1745728257335,-319.0,0.00022935,3]
[359134104,1745728257345,-193.2209049,0.00022935,3]
[359134105,1745728257357,-359.0,0.00022935,3]
[359134106,1745728257368,-359.0,0.00022935,3]
[359134107,1745728257378,-359.0,0.00022935,3]
[359134108,1745728257388,-359.0,0.00022935,3]
[359134109,1745728257397,-359.0,0.00022935,3]
[359134110,1745728257407,-359.0,0.00022935,3]
[359134111,1745728257418,-359.0,0.00022935,3]
[359134112,1745728257431,-359.0,0.00022935,3]
[359134113,1745728257569,-359.0,0.00022935,3]
[359134114,1745728257580,-359.0,0.00022935,3]
[359134115,1745728257589,-359.0,0.00022935,3]
[359134116,1745728257598,-359.0,0.00022935,3]
[359134117,1745728257607,-359.0,0.00022935,3]
[359134118,1745728257617,-359.0,0.00022935,3]
[359134119,1745728257626,-359.0,0.00022935,3]
[359134120,1745728257636,-359.0,0.00022935,3]
[359134121,1745728257645,-359.0,0.00022935,3]
[359134122,1745728257655,-359.0,0.00022935,3]
[359134123,1745728257665,-359.0,0.00022935,3]
[359134124,1745728257675,-359.0,0.00022935,3]
[359134125,1745728257685,-359.0,0.00022935,3]
[359134126,1745728257695,-359.0,0.00022935,3]
[359134127,1745728257705,-359.0,0.00022935,3]
[359134128,1745728257715,-359.0,0.00022935,3]
[359134129,1745728257724,-359.0,0.00022935,3]
[359134130,1745728257734,-359.0,0.00022935,3]
[359134131,1745728257744,-359.0,0.00022935,3]
[359134132,1745728257753,-359.0,0.00022935,3]
[359134133,1745728257762,-359.0,0.00022935,3]
[359134134,1745728257772,-359.0,0.00022935,3]
[359134135,1745728257781,-359.0,0.00022935,3]
[359134136,1745728257791,-359.0,0.00022935,3]
[359134137,1745728257801,-359.0,0.00022935,3]
[359134138,1745728257811,-359.0,0.00022935,3]
[359134139,1745728257821,-359.0,0.00022935,3]
[359134140,1745728257830,-359.0,0.00022935,3]
[359134141,1745728257839,-359.0,0.00022935,3]
[359134142,1745728257849,-359.0,0.00022935,3]
[359134143,1745728257858,-359.0,0.00022935,3]
[359134144,1745728257868,-359.0,0.00022935,3]
[359134145,1745728257878,-359.0,0.00022935,3]
[359134146,1745728257887,-359.0,0.00022935,3]
[359134147,1745728257896,-359.0,0.00022935,3]
[359134148,1745728257906,-156.11415093,0.00022935,3]
[359134149,1745728257915,-180.957343,0.00022935,7]
[359134150,1745728257925,-180.957343,0.00022935,7]
[359134151,1745728257935,-151.0,0.00022935,7]
[359134152,1745728257944,-151.0,0.00022935,7]
[359134153,1745728257953,-562.556638,0.00022935,7]
[359134154,1745728257963,-562.55663,0.00022935,7]
[359134155,1745728257972,-160.0,0.00022935,3]
[359134156,1745728257982,-197.07308846,0.00022935,3]
[359134157,1745728257991,-421.1409203,0.00023,3]
[359134158,1745728258001,-160.0,0.00023,3]
[359134159,1745728258010,-160.0,0.00023,3]
[359134160,1745728258020,-1046.70920026,0.00023,2]
[359134161,1745728258030,-2000.0,0.00023,4]
[359134162,1745728258039,-374.09201416,0.00023041,2]
[359134163,1745728258049,-350.0,0.00023196,2]
[359134164,1745728258058,-151.0,0.000232,7]
[359134165,1745728258068,-353.4015556,0.00023247,2]
[359134166,1745728258077,-1133.3010594,0.00023247,2]
[359134167,1745728258086,-391.98946048,0.00023348,4]
[359134168,1745728258096,-600.0,0.00023356,2]
[359134169,1745728258105,-165.93638792,0.00023445,5]
[359134170,1745728258114,-5000.0,0.00023602,2]
[359134171,1745728258124,-450.0,0.00023744,2]
[359134172,1745728258133,-151.0,0.000238,6]
[359134173,1745728258142,-153.749278,0.00023918,2]
[359134174,1745728258152,-2000.0,0.00024,4]
[359134175,1745728258161,-151.82137149,0.00024,2]
[359134176,1745728258171,-151.0,0.000241,9]
[359134177,1745728258180,-1200.0,0.0002411,2]
[359134178,1745728258189,-391.98946048,0.00024176,5]
[359134179,1745728258199,-369.9622468,0.00024205,2]
[359134180,1745728258208,-550.0,0.00024292,2]
[359134181,1745728258217,-151.0,0.000243,8]
[359134182,1745728258226,-1000.0,0.00024345,2]
[359134183,1745728258235,-153.0,0.00024356,2]
[359134184,1745728258245,-1000.0,0.00024379,2]
[359134185,1745728258254,-1000.0,0.00024387,2]
[359134186,1745728258264,-500.0,0.0002439,2]
[359134187,1745728258273,-551.62069325,0.0002439,2]
[359134188,1745728258283,-503.64124032,0.0002439,2]
[359134189,1745728258292,-160.0,0.000244,15]
[359134190,1745728258301,-2000.0,0.000244,2]
[359134191,1745728258311,-42970.25542403,0.0002445,2]
[359134192,1745728258320,-152.592889,0.0002445,7]
[359134193,1745728258329,-180.957343,0.0002445,7]
[359134194,1745728258339,-180.957343,0.0002445,7]
[359134195,1745728258348,-151.0,0.0002445,7]
[359134196,1745728258357,-600.0,0.00024452,2]
[359134197,1745728258367,-1000.0,0.00024587,2]
[359134198,1745728258376,-2000.0,0.000246,2]
[359134199,1745728258385,-7754.77208489,0.00024651,2]
[359134200,1745728258394,-380.0,0.00024658,2]
[359134201,1745728258404,-403.0,0.00024798,2]
[359134202,1745728258413,-2000.0,0.000248,2]
[359134203,1745728258422,-2000.0,0.000248,2]
[359134204,1745728258433,-188880.255754,0.000248,2]
[359134205,1745728258443,-468.34441949,0.00024831,2]
[359134206,1745728258454,-650.0,0.0002484,2]
[359134207,1745728258465,-180.957343,0.0002489,7]
[359134208,1745728258477,-180.957343,0.0002489,7]
[359134209,1745728258487,-17610.4102898,0.00024891,2]
[359134210,1745728258597,-3572.92119429,0.00024891,2]
[359134211,1745728258609,-12564.94537659,0.00024891,2]
[359134212,1745728258619,-1294.81059124,0.00024895,2]
[359134213,1745728258630,-9343.16794347,0.00024895,2]
[359134214,1745728334913,264.83460311,0.00021,10]
[359135465,1745729229127,-884.31591101,0.00015,2]
[359135466,1745729229149,-249.3341808,0.00015404,2]
[359135467,1745729229170,-500.0,0.00016164,2]
[359135468,1745729229191,-2518.31210625,0.000163,2]
[359135469,1745729403162,805.22218243,0.00013,2]
[359135470,1745729403885,-300.84604689,0.00013,2]
[359135473,1745729407198,-73.78489224,0.00013,2]
[359135482,1745729432180,-1200.0,0.00014523,2]
[359135483,1745729432191,-300.0,0.00014523,2]
[359135484,1745729432201,-10000.0,0.00014524,2]
[359135485,1745729432211,-300.0,0.00014899,2]
[359135486,1745729432221,-300.0,0.00014899,2]
[359135487,1745729432231,-300.0,0.00014899,2]
[359135488,1745729432243,-300.0,0.00014899,2]
[359135489,1745729432253,-184.57450925,0.000149,2]
[359135490,1745729432262,-1406.96844382,0.000149,2]
[359135491,1745729432273,-24900.0,0.00015173,2]
[359135492,1745729432284,-1240.44340029,0.00015247,2]
[359135493,1745729432294,-250.0,0.00015301,2]
[359135494,1745729432303,-12235.5703863,0.00015396,2]
[359135495,1745729432313,-347.52351464,0.00015401,2]
[359135496,1745729432334,-446.50542816,0.00015401,2]
[359135497,1745729432345,-420.0,0.00015903,2]
[359135498,1745729432360,-420.0,0.00015976,2]
[359135499,1745729432369,-13701.33350928,0.00016,2]
[359135500,1745729432383,-12783.66649072,0.00016,2]
[359135502,1745729432392,-7191.0,0.00016,2]
[359135504,1745729432403,-2481.68789375,0.000163,2]
[359135506,1745729432412,-420.0,0.00016308,2]
[359135508,1745729432422,-927.22877809,0.00016328,2]
[359135510,1745729432433,-500.0,0.00016337,2]
[359135512,1745729432443,-500.0,0.00016337,2]
[359135514,1745729432453,-353.45277446,0.00016337,2]
[359135516,1745729432462,-500.0,0.00016337,2]
[359135518,1745729432472,-500.0,0.00016337,2]
[359135521,1745729432482,-500.0,0.00016337,2]
[359135523,1745729432493,-500.0,0.00016337,2]
[359135525,1745729432503,-500.0,0.00016337,2]
[359135527,1745729432513,-500.0,0.00016337,2]
[359135529,1745729432523,-500.0,0.00016337,2]
[359135531,1745729432533,-500.0,0.00016337,2]
[359135533,1745729432543,-500.0,0.00016337,2]
[359135534,1745729432553,-500.0,0.00016337,2]
[359135535,1745729432562,-500.0,0.00016337,2]
[359135536,1745729432572,-219.31239007,0.00016337,2]
[359135537,1745729432581,-500.0,0.00016337,2]
[359135539,1745729432591,-500.0,0.00016337,2]
[359135540,1745729432601,-500.0,0.00016337,2]
[359135541,1745729432611,-500.0,0.00016337,2]
[359135542,1745729432621,-500.0,0.00016337,2]
[359135543,1745729432632,-500.0,0.00016337,2]
[359135544,1745729432642,-500.0,0.00016337,2]
[359135545,1745729432652,-500.0,0.00016337,2]
[359135546,1745729432662,-500.0,0.00016337,2]
[359135547,1745729432673,-500.0,0.00016337,2]
[359135548,1745729432684,-500.0,0.00016337,2]
[359135549,1745729432694,-500.0,0.00016337,2]
[359135550,1745729432705,-500.0,0.00016337,2]
[359135551,1745729432715,-500.0,0.00016337,2]
[359135552,1745729432726,-500.0,0.00016337,2]
[359135553,1745729432738,-500.0,0.00016337,2]
[359135554,1745729432758,-500.0,0.00016337,2]
[359135555,1745729432770,-396.43975006,0.00016337,2]
[359135556,1745729432781,-500.0,0.00016337,2]
[359135557,1745729432796,-500.0,0.00016337,2]
[359135558,1745729432807,-228.06519477,0.00016337,2]
[359135559,1745729432819,-500.0,0.00016337,2]
[359135560,1745729432829,-596.5,0.00016337,2]
[359135561,1745729432840,-500.0,0.00016337,2]
[359135562,1745729432852,-500.0,0.00016337,2]
[359135563,1745729432862,-500.0,0.00016337,2]
[359135564,1745729432873,-500.0,0.00016337,2]
[359135565,1745729432884,-500.0,0.00016337,2]
[359135566,1745729432894,-500.0,0.00016337,2]
[359135567,1745729432904,-500.0,0.00016337,2]
[359135568,1745729432914,-500.0,0.00016337,2]
[359135569,1745729432924,-500.0,0.00016337,2]
[359135570,1745729432935,-500.0,0.00016337,2]
[359135571,1745729432945,-500.0,0.00016337,2]
[359135572,1745729432955,-500.0,0.00016337,2]
[359135573,1745729432966,-500.0,0.00016337,2]
[359135574,1745729432975,-500.0,0.00016337,2]
[359135575,1745729432985,-500.0,0.00016337,2]
[359135576,1745729433001,-500.0,0.00016337,2]
[359135577,1745729433012,-543.56265318,0.00016337,2]
[359135578,1745729433022,-500.0,0.00016337,2]
[359135579,1745729433032,-500.0,0.00016337,2]
[359135580,1745729433043,-500.0,0.00016337,2]
[359135581,1745729433054,-500.0,0.00016337,2]
[359135582,1745729433064,-500.0,0.00016337,2]
[359135583,1745729433076,-500.0,0.00016337,2]
[359135584,1745729433086,-316.72789755,0.00016337,2]
[359135585,1745729433097,-500.0,0.00016337,2]
[359135586,1745729433108,-500.0,0.00016337,2]
[359135587,1745729433119,-500.0,0.00016337,2]
[359135588,1745729433130,-500.0,0.00016337,2]
[359135589,1745729433141,-500.0,0.00016337,2]
[359135590,1745729433152,-500.0,0.00016337,2]
[359135591,1745729433162,-500.0,0.00016337,2]
[359135592,1745729433172,-500.0,0.00016337,2]
[359135593,1745729433181,-500.0,0.00016337,2]
[359135594,1745729433191,-500.0,0.00016337,2]
[359135595,1745729433200,-500.0,0.00016337,2]
[359135596,1745729433210,-500.0,0.00016337,2]
[359135597,1745729433219,-500.0,0.00016337,2]
[359135598,1745729433229,-500.0,0.00016337,2]
[359135599,1745729433238,-500.0,0.00016337,2]
[359135600,1745729433252,-500.0,0.00016337,2]
[359135601,1745729433261,-500.0,0.00016337,2]
[359135602,1745729433271,-500.0,0.00016337,2]
[359135603,1745729433281,-500.0,0.00016337,2]
[359135604,1745729433291,-500.0,0.00016337,2]
[359135605,1745729433301,-500.0,0.00016337,2]
[359135606,1745729433311,-156.36436607,0.00016337,2]
[359135607,1745729433321,-500.0,0.00016337,2]
[359135608,1745729433332,-500.0,0.00016337,2]
[359135609,1745729433343,-500.0,0.00016337,2]
[359135610,1745729433355,-500.0,0.00016337,2]
[359135611,1745729433365,-500.0,0.00016337,2]
[359135612,1745729433376,-500.0,0.00016337,2]
[359135613,1745729433386,-500.0,0.00016337,2]
[359135614,1745729433398,-500.0,0.00016337,2]
[359135615,1745729433408,-500.0,0.00016337,2]
[359135616,1745729433418,-500.0,0.00016337,2]
[359135617,1745729433429,-500.0,0.00016337,2]
[359135618,1745729433441,-500.0,0.00016337,2]
[359135619,1745729433452,-500.0,0.00016337,2]
[359135620,1745729433461,-500.0,0.00016337,2]
[359135621,1745729433471,-500.0,0.00016337,2]
[359135622,1745729433481,-500.0,0.00016337,2]
[359135623,1745729433491,-500.0,0.00016337,2]
[359135624,1745729433504,-500.0,0.00016337,2]
[359135625,1745729433514,-500.0,0.00016337,2]
[359135626,1745729433523,-500.0,0.00016337,2]
[359135627,1745729433534,-500.0,0.00016337,2]
[359135628,1745729433543,-14140.1477986,0.00016337,2]
[359135629,1745729433553,-14140.1477986,0.00016337,2]
[359135630,1745729433562,-14140.1477986,0.00016337,2]
[359135631,1745729433572,-14140.1477986,0.00016337,2]
[359135632,1745729433731,-14140.1477986,0.00016337,2]
[359135633,1745729433746,-14140.1477986,0.00016337,2]
[359135634,1745729433757,-14140.1477986,0.00016337,2]
[359135635,1745729433767,-14140.1477986,0.00016337,2]
[359135636,1745729433777,-164.737674,0.00016337,2]
[359135637,1745729433786,-1098.08248956,0.00016338,2]
[359135638,1745729433796,-311.5522286,0.00016338,2]
[359135639,1745729433806,-199.84612519,0.00016338,2]
[359135640,1745729433815,-3327.53149635,0.00016338,2]
[359135641,1745729433825,-171.60217959,0.00016423,2]
[359135642,1745729433835,-500.0,0.0001643,2]
[359135643,1745729433845,-500.0,0.0001643,2]
[359135644,1745729433855,-500.0,0.0001643,2]
[359135645,1745729433865,-500.0,0.0001643,2]
[359135646,1745729433875,-164.45256606,0.0001643,2]
[359135647,1745729433884,-500.0,0.0001643,2]
[359135648,1745729433895,-500.0,0.0001643,2]
[359135649,1745729433904,-500.0,0.0001643,2]
[359135650,1745729433914,-500.0,0.0001643,2]
[359135651,1745729433924,-500.0,0.0001643,2]
[359135652,1745729433934,-440.22810953,0.0001643,2]
[359135653,1745729433943,-500.0,0.0001643,2]
[359135654,1745729433952,-500.0,0.0001643,2]
[359135655,1745729433962,-500.0,0.0001643,2]
[359135656,1745729433971,-535.13274716,0.0001643,2]
[359135657,1745729433981,-500.0,0.00016438,2]
[359135658,1745729433991,-500.0,0.00016438,2]
[359135659,1745729434004,-500.0,0.00016438,2]
[359135660,1745729434014,-500.0,0.00016438,2]
[359135661,1745729434024,-500.0,0.00016438,2]
[359135662,1745729434033,-500.0,0.00016438,2]
[359135663,1745729434043,-501.59281953,0.00016438,2]
[359135664,1745729434053,-500.0,0.00016438,2]
[359135665,1745729434062,-500.0,0.00016438,2]
[359135666,1745729434072,-400.0,0.00016438,2]
[359135667,1745729434082,-500.0,0.00016438,2]
[359135668,1745729434092,-500.0,0.00016438,2]